[Event "*** SCC Grand Prix: Titled Tuesday Blitz"]
[Site "Chess.com"]
[Date "2020.07.14"]
[Round "2"]
[White "Tash_Boy"]
[Black "dopolian"]
[Result "1-0"]
[WhiteElo "2681"]
[BlackElo "2456"]
[TimeControl "180+1"]
[EndTime "10:18:28 PDT"]
[Termination "Tash_Boy won on time"]

1. e4 {[%clk 0:03:00.9]} 1... e5 {[%clk 0:02:59.8]} 2. Nf3 {[%clk 0:03:00.6]}
2... Nc6 {[%clk 0:03:00.4]} 3. Bc4 {[%clk 0:03:00.7]} 3... Bc5 {[%clk
0:03:00.1]} 4. c3 {[%clk 0:03:00.6]} 4... Nf6 {[%clk 0:03:00.3]} 5. d3 {[%clk
0:03:00.8]} 5... O-O {[%clk 0:03:00.2]} 6. O-O {[%clk 0:03:00.7]} 6... d5 {[%clk
0:02:53.8]} 7. exd5 {[%clk 0:03:00.3]} 7... Nxd5 {[%clk 0:02:54.7]} 8. a4 {[%clk
0:02:59.8]} 8... a5 {[%clk 0:02:54.4]} 9. Re1 {[%clk 0:02:56.3]} 9... Bg4 {[%clk
0:02:53.8]} 10. Nbd2 {[%clk 0:02:54.8]} 10... Bb6 {[%clk 0:02:51]} 11. h3 {[%clk
0:02:53.8]} 11... Bh5 {[%clk 0:02:50.9]} 12. Ne4 {[%clk 0:02:54.2]} 12... Re8
{[%clk 0:02:44.5]} 13. Ng3 {[%clk 0:02:48.7]} 13... Bg6 {[%clk 0:02:43.3]} 14.
Qb3 {[%clk 0:02:27]} 14... Nf6 {[%clk 0:02:41.6]} 15. Ng5 {[%clk 0:02:13.9]}
15... Re7 {[%clk 0:02:32.5]} 16. N5e4 {[%clk 0:02:08.6]} 16... Nxe4 {[%clk
0:02:31.2]} 17. dxe4 {[%clk 0:02:06.4]} 17... Rd7 {[%clk 0:02:18.8]} 18. Bd5
{[%clk 0:01:40.2]} 18... Rb8 {[%clk 0:02:08.2]} 19. Be3 {[%clk 0:01:17.5]} 19...
Bxe3 {[%clk 0:02:07.6]} 20. Rxe3 {[%clk 0:01:18.4]} 20... Ne7 {[%clk 0:02:06.6]}
21. Bc4 {[%clk 0:01:13.7]} 21... b6 {[%clk 0:01:44.6]} 22. Rf3 {[%clk
0:01:08.9]} 22... Nc8 {[%clk 0:01:19.8]} 23. Bb5 {[%clk 0:01:04.3]} 23... Rd2
{[%clk 0:01:09.6]} 24. Re1 {[%clk 0:00:52.1]} 24... Nd6 {[%clk 0:01:07.9]} 25.
Bc6 {[%clk 0:00:51.9]} 25... Nc8 {[%clk 0:00:31.5]} 26. Bd5 {[%clk 0:00:49.3]}
26... Nd6 {[%clk 0:00:20.3]} 27. Nf1 {[%clk 0:00:48.4]} 27... Rxd5 {[%clk
0:00:20]} 28. Qxd5 {[%clk 0:00:47.2]} 28... Qe7 {[%clk 0:00:19.5]} 29. Ng3
{[%clk 0:00:47.1]} 29... Rd8 {[%clk 0:00:17]} 30. Qb3 {[%clk 0:00:47.3]} 30...
Kh8 {[%clk 0:00:13.4]} 31. Rd3 {[%clk 0:00:47.2]} 31... f6 {[%clk 0:00:12.6]}
32. Red1 {[%clk 0:00:45.8]} 32... Bf7 {[%clk 0:00:10]} 33. Qc2 {[%clk
0:00:45.8]} 33... Bc4 {[%clk 0:00:09.3]} 34. R3d2 {[%clk 0:00:46]} 34... Re8
{[%clk 0:00:07.7]} 35. b3 {[%clk 0:00:46]} 35... Be6 {[%clk 0:00:07.5]} 36. c4
{[%clk 0:00:46.2]} 36... Nb7 {[%clk 0:00:06.6]} 37. f3 {[%clk 0:00:42.6]} 37...
Nc5 {[%clk 0:00:06.9]} 38. Kh2 {[%clk 0:00:42.6]} 38... g6 {[%clk 0:00:03.1]}
39. Qc3 {[%clk 0:00:40]} 39... Kg7 {[%clk 0:00:03.6]} 40. Ne2 {[%clk 0:00:37.6]}
40... Bf7 {[%clk 0:00:02.3]} 41. Qe3 {[%clk 0:00:37.1]} 41... Be6 {[%clk
0:00:02.5]} 42. Nc3 {[%clk 0:00:36.9]} 42... c6 {[%clk 0:00:02]} 43. Rd6 {[%clk
0:00:35.8]} 43... Bd7 {[%clk 0:00:02.2]} 44. Ne2 {[%clk 0:00:33.4]} 44... Rc8
{[%clk 0:00:02]} 45. h4 {[%clk 0:00:30.3]} 45... Be6 {[%clk 0:00:01.9]} 46. h5
{[%clk 0:00:29.7]} 46... Bf7 {[%clk 0:00:02]} 47. h6+ {[%clk 0:00:29.7]} 47...
Kg8 {[%clk 0:00:02.5]} 48. Ng3 {[%clk 0:00:28.6]} 48... Be8 {[%clk 0:00:01.8]}
49. Qd2 {[%clk 0:00:26.5]} 49... Bf7 {[%clk 0:00:01.9]} 50. Rd8+ {[%clk
0:00:26.7]} 50... Rxd8 {[%clk 0:00:02.5]} 51. Qxd8+ {[%clk 0:00:27.2]} 51... Qe8
{[%clk 0:00:02.2]} 52. Qxf6 {[%clk 0:00:26.8]} 52... Ne6 {[%clk 0:00:01.2]} 53.
Rd6 {[%clk 0:00:24.8]} 1-0

[Event "*** SCC Grand Prix: Titled Tuesday Blitz"]
[Site "Chess.com"]
[Date "2020.07.14"]
[Round "2"]
[White "Shield12"]
[Black "Haykoooo0o"]
[Result "1-0"]
[WhiteElo "2837"]
[BlackElo "2520"]
[TimeControl "180+1"]
[EndTime "10:18:29 PDT"]
[Termination "Shield12 won by resignation"]

1. e4 {[%clk 0:03:00.9]} 1... e5 {[%clk 0:02:52.3]} 2. Nf3 {[%clk 0:03:00.8]}
2... Nc6 {[%clk 0:02:48.2]} 3. Nc3 {[%clk 0:03:01.2]} 3... Nf6 {[%clk 0:02:48]}
4. Be2 {[%clk 0:03:01.7]} 4... d5 {[%clk 0:02:46.3]} 5. Bb5 {[%clk 0:03:01.7]}
5... d4 {[%clk 0:02:42.8]} 6. Ne2 {[%clk 0:03:01.4]} 6... Bd6 {[%clk 0:02:39]}
7. Bxc6+ {[%clk 0:03:00.9]} 7... bxc6 {[%clk 0:02:39.1]} 8. d3 {[%clk
0:03:01.8]} 8... c5 {[%clk 0:02:39.2]} 9. O-O {[%clk 0:03:00.7]} 9... c4 {[%clk
0:02:33.8]} 10. Nexd4 {[%clk 0:02:41.8]} 10... exd4 {[%clk 0:02:30.1]} 11. e5
{[%clk 0:02:41]} 11... O-O {[%clk 0:01:55.9]} 12. exd6 {[%clk 0:02:38.9]} 12...
cxd3 {[%clk 0:01:53.2]} 13. Qxd3 {[%clk 0:02:19.3]} 13... Qxd6 {[%clk
0:01:46.4]} 14. Qxd4 {[%clk 0:02:19.2]} 14... Qc6 {[%clk 0:01:36.1]} 15. c4
{[%clk 0:01:49.3]} 15... Bb7 {[%clk 0:01:29.5]} 16. b3 {[%clk 0:01:48.5]} 16...
Rad8 {[%clk 0:01:24.1]} 17. Qh4 {[%clk 0:01:45.1]} 17... Rfe8 {[%clk 0:01:22.9]}
18. h3 {[%clk 0:01:15.9]} 18... Rd3 {[%clk 0:01:15.6]} 19. Be3 {[%clk
0:01:09.2]} 19... h6 {[%clk 0:00:53]} 20. Rad1 {[%clk 0:01:07.8]} 20... Rxd1
{[%clk 0:00:39.8]} 21. Rxd1 {[%clk 0:01:08.7]} 21... a5 {[%clk 0:00:35.2]} 22.
Qg3 {[%clk 0:00:50.7]} 22... Ne4 {[%clk 0:00:25.8]} 23. Qg4 {[%clk 0:00:39.6]}
23... a4 {[%clk 0:00:23]} 24. Nd4 {[%clk 0:00:36.5]} 24... Qf6 {[%clk
0:00:19.8]} 25. Qf4 {[%clk 0:00:31.8]} 25... Qxf4 {[%clk 0:00:16.7]} 26. Bxf4
{[%clk 0:00:32.7]} 26... c5 {[%clk 0:00:16.1]} 27. Nb5 {[%clk 0:00:20.4]} 27...
axb3 {[%clk 0:00:15.4]} 28. axb3 {[%clk 0:00:21.3]} 28... Bc6 {[%clk 0:00:16.1]}
29. f3 {[%clk 0:00:18.6]} 29... Bxb5 {[%clk 0:00:12.5]} 30. fxe4 {[%clk
0:00:14.8]} 30... Bc6 {[%clk 0:00:13]} 31. Bd6 {[%clk 0:00:13.9]} 31... Rxe4
{[%clk 0:00:12.3]} 32. Bxc5 {[%clk 0:00:13]} 32... Re2 {[%clk 0:00:12.8]} 33.
Bf2 {[%clk 0:00:08.9]} 33... Rb2 {[%clk 0:00:13.3]} 34. Rd8+ {[%clk 0:00:08.8]}
34... Kh7 {[%clk 0:00:13.2]} 35. Rb8 {[%clk 0:00:09.7]} 35... f5 {[%clk
0:00:08]} 36. b4 {[%clk 0:00:09.5]} 36... f4 {[%clk 0:00:07.4]} 37. b5 {[%clk
0:00:09.9]} 37... Be4 {[%clk 0:00:07.2]} 38. Rd8 {[%clk 0:00:08.5]} 38... Rb4
{[%clk 0:00:05]} 39. Rd4 {[%clk 0:00:08]} 39... Bb7 {[%clk 0:00:03.3]} 40. Rxf4
{[%clk 0:00:08.1]} 40... g5 {[%clk 0:00:03.8]} 41. Rf7+ {[%clk 0:00:08.3]} 41...
Kg6 {[%clk 0:00:04.7]} 42. Rxb7 {[%clk 0:00:09.1]} 42... Rxc4 {[%clk 0:00:05.6]}
1-0

[Event "*** SCC Grand Prix: Titled Tuesday Blitz"]
[Site "Chess.com"]
[Date "2020.07.14"]
[Round "2"]
[White "okriak"]
[Black "Bacyanide"]
[Result "1-0"]
[WhiteElo "2708"]
[BlackElo "2469"]
[TimeControl "180+1"]
[EndTime "10:18:29 PDT"]
[Termination "okriak won by resignation"]

1. Nf3 {[%clk 0:03:00.9]} 1... d5 {[%clk 0:02:57.2]} 2. e3 {[%clk 0:02:59.4]}
2... Nf6 {[%clk 0:02:54.5]} 3. c4 {[%clk 0:02:59.8]} 3... e6 {[%clk 0:02:54.1]}
4. b3 {[%clk 0:02:59.8]} 4... c5 {[%clk 0:02:50]} 5. Bb2 {[%clk 0:02:58.4]} 5...
Nc6 {[%clk 0:02:50.1]} 6. cxd5 {[%clk 0:02:58.6]} 6... exd5 {[%clk 0:02:49.6]}
7. Nc3 {[%clk 0:02:58]} 7... Be6 {[%clk 0:02:33.2]} 8. Rc1 {[%clk 0:02:52.7]}
8... Be7 {[%clk 0:02:32]} 9. d4 {[%clk 0:02:52.5]} 9... c4 {[%clk 0:02:22.8]}
10. Ne5 {[%clk 0:02:20.1]} 10... Qa5 {[%clk 0:02:12.5]} 11. Nxc6 {[%clk
0:02:10.1]} 11... bxc6 {[%clk 0:02:12.3]} 12. bxc4 {[%clk 0:02:10.4]} 12... dxc4
{[%clk 0:02:13.2]} 13. Qa4 {[%clk 0:02:07.2]} 13... Bb4 {[%clk 0:01:44.2]} 14.
Qxa5 {[%clk 0:01:54.1]} 14... Bxa5 {[%clk 0:01:45.1]} 15. Be2 {[%clk 0:01:44.8]}
15... Rb8 {[%clk 0:01:41.7]} 16. Ba1 {[%clk 0:01:44.2]} 16... Nd5 {[%clk
0:01:04.5]} 17. O-O {[%clk 0:01:42.3]} 17... Nb4 {[%clk 0:01:02.6]} 18. Rfd1
{[%clk 0:00:59.2]} 18... O-O {[%clk 0:00:57.7]} 19. a3 {[%clk 0:00:56.6]} 19...
Nd3 {[%clk 0:00:57.1]} 20. Bxd3 {[%clk 0:00:56.5]} 20... cxd3 {[%clk 0:00:58]}
21. Rxd3 {[%clk 0:00:57.1]} 21... Rb3 {[%clk 0:00:57.9]} 22. a4 {[%clk
0:00:42.7]} 22... Rfb8 {[%clk 0:00:54.1]} 23. Rdd1 {[%clk 0:00:41.2]} 23... Ra3
{[%clk 0:00:41.4]} 24. Ne4 {[%clk 0:00:41.1]} 24... Bd5 {[%clk 0:00:35.7]} 25.
Nc5 {[%clk 0:00:39.8]} 25... Bb6 {[%clk 0:00:27.5]} 26. Rb1 {[%clk 0:00:35.1]}
26... Re8 {[%clk 0:00:26.5]} 27. Bb2 {[%clk 0:00:34.2]} 27... Bxc5 {[%clk
0:00:26.1]} 28. dxc5 {[%clk 0:00:33.5]} 28... Rxa4 {[%clk 0:00:26.4]} 29. Ra1
{[%clk 0:00:31.2]} 29... Rg4 {[%clk 0:00:24.7]} 30. g3 {[%clk 0:00:28.8]} 30...
Rb4 {[%clk 0:00:21.1]} 31. Bd4 {[%clk 0:00:27.7]} 31... Re7 {[%clk 0:00:20.5]}
32. Rdb1 {[%clk 0:00:24.4]} 32... Reb7 {[%clk 0:00:20.2]} 33. Rxb4 {[%clk
0:00:23.2]} 33... Rxb4 {[%clk 0:00:21.1]} 34. g4 {[%clk 0:00:22.1]} 34... f6
{[%clk 0:00:20.2]} 35. h4 {[%clk 0:00:20.6]} 35... Rb7 {[%clk 0:00:20.2]} 36.
Kh2 {[%clk 0:00:20.4]} 36... Kf7 {[%clk 0:00:20.5]} 37. Kg3 {[%clk 0:00:20.9]}
37... g5 {[%clk 0:00:20.7]} 38. hxg5 {[%clk 0:00:20.9]} 38... fxg5 {[%clk
0:00:21.6]} 39. Rh1 {[%clk 0:00:20.7]} 39... Kg6 {[%clk 0:00:21.9]} 40. Ra1
{[%clk 0:00:20.3]} 40... h5 {[%clk 0:00:21.1]} 41. gxh5+ {[%clk 0:00:20.1]}
41... Kxh5 {[%clk 0:00:22]} 42. f3 {[%clk 0:00:20.6]} 42... Kg6 {[%clk
0:00:22.1]} 43. e4 {[%clk 0:00:21]} 43... Be6 {[%clk 0:00:22.5]} 44. Ra6 {[%clk
0:00:21.4]} 44... Bd7 {[%clk 0:00:20.2]} 45. Be5 {[%clk 0:00:21.6]} 45... Kf7
{[%clk 0:00:18]} 46. Bd6 {[%clk 0:00:21.5]} 46... Ke6 {[%clk 0:00:18.3]} 47. Kg4
{[%clk 0:00:19.9]} 47... Rb3 {[%clk 0:00:16.7]} 48. Rxa7 {[%clk 0:00:19.3]}
48... Rd3 {[%clk 0:00:16.2]} 49. Kg3 {[%clk 0:00:19.3]} 49... Rc3 {[%clk
0:00:14.1]} 50. Ra8 {[%clk 0:00:19.6]} 50... Kf7 {[%clk 0:00:13.8]} 51. Rf8+
{[%clk 0:00:20]} 51... Kg7 {[%clk 0:00:13.7]} 52. Rd8 {[%clk 0:00:20.2]} 52...
Be6 {[%clk 0:00:10.1]} 53. Be5+ {[%clk 0:00:20.5]} 53... Kg6 {[%clk 0:00:11]}
54. Bxc3 {[%clk 0:00:21.1]} 1-0

[Event "*** SCC Grand Prix: Titled Tuesday Blitz"]
[Site "Chess.com"]
[Date "2020.07.14"]
[Round "2"]
[White "oskariot"]
[Black "turayev_shahruh17"]
[Result "0-1"]
[WhiteElo "2653"]
[BlackElo "2471"]
[TimeControl "180+1"]
[EndTime "10:18:29 PDT"]
[Termination "turayev_shahruh17 won by resignation"]

1. e4 {[%clk 0:03:00.9]} 1... e6 {[%clk 0:02:59.6]} 2. d4 {[%clk 0:02:59.2]}
2... d5 {[%clk 0:03:00.2]} 3. Nd2 {[%clk 0:02:58.9]} 3... Nf6 {[%clk 0:03:00.2]}
4. e5 {[%clk 0:02:58.4]} 4... Nfd7 {[%clk 0:03:00.8]} 5. c3 {[%clk 0:02:58.3]}
5... c5 {[%clk 0:03:01.7]} 6. f4 {[%clk 0:02:58.3]} 6... Nc6 {[%clk 0:03:02.6]}
7. Ndf3 {[%clk 0:02:56.2]} 7... f6 {[%clk 0:03:01.4]} 8. Bd3 {[%clk 0:02:54]}
8... Qb6 {[%clk 0:03:00.7]} 9. Ne2 {[%clk 0:02:53.3]} 9... Be7 {[%clk
0:03:00.5]} 10. a3 {[%clk 0:02:49.1]} 10... O-O {[%clk 0:02:57.9]} 11. b4 {[%clk
0:02:45.3]} 11... cxd4 {[%clk 0:02:57.9]} 12. cxd4 {[%clk 0:02:46.2]} 12... a6
{[%clk 0:02:51.8]} 13. h4 {[%clk 0:02:35.3]} 13... Qd8 {[%clk 0:02:17]} 14. Bc2
{[%clk 0:01:59.6]} 14... b5 {[%clk 0:02:14.7]} 15. g4 {[%clk 0:01:48.1]} 15...
Nb6 {[%clk 0:02:04.3]} 16. Ng3 {[%clk 0:01:39.3]} 16... Nc4 {[%clk 0:01:50.2]}
17. exf6 {[%clk 0:01:15.6]} 17... Bxf6 {[%clk 0:01:41.6]} 18. Qd3 {[%clk
0:01:14.1]} 18... g6 {[%clk 0:01:11.8]} 19. h5 {[%clk 0:01:08.3]} 19... Ne7
{[%clk 0:01:12]} 20. hxg6 {[%clk 0:01:06.1]} 20... hxg6 {[%clk 0:01:12.9]} 21.
Qe2 {[%clk 0:00:53.1]} 21... Kf7 {[%clk 0:00:54.1]} 22. Rh7+ {[%clk 0:00:50.5]}
22... Ke8 {[%clk 0:00:54.3]} 23. g5 {[%clk 0:00:40.5]} 23... Bh8 {[%clk
0:00:41.5]} 24. Nh4 {[%clk 0:00:38.3]} 24... Bxd4 {[%clk 0:00:29.2]} 25. Nxg6
{[%clk 0:00:38.3]} 25... Bxa1 {[%clk 0:00:15.8]} 26. Rxe7+ {[%clk 0:00:37.5]}
26... Qxe7 {[%clk 0:00:15.6]} 27. Nxe7 {[%clk 0:00:38.4]} 27... Kxe7 {[%clk
0:00:15.7]} 28. Qh5 {[%clk 0:00:37]} 28... Bd7 {[%clk 0:00:13.2]} 29. g6 {[%clk
0:00:36.5]} 29... Kd6 {[%clk 0:00:10.9]} 30. f5 {[%clk 0:00:34.2]} 30... exf5
{[%clk 0:00:10.4]} 31. Bf4+ {[%clk 0:00:34.1]} 31... Kc6 {[%clk 0:00:10.3]} 32.
g7 {[%clk 0:00:33.6]} 32... Bxg7 {[%clk 0:00:09.8]} 33. Qg6+ {[%clk 0:00:32.6]}
33... Bf6 {[%clk 0:00:10.1]} 34. Nh5 {[%clk 0:00:32.2]} 34... Rae8+ {[%clk
0:00:10.4]} 35. Kf1 {[%clk 0:00:30.2]} 35... Re6 {[%clk 0:00:10.9]} 36. Bxf5
{[%clk 0:00:27.9]} 36... Be8 {[%clk 0:00:08]} 37. Qh6 {[%clk 0:00:24.5]} 37...
Rh8 {[%clk 0:00:07.3]} 38. Bxe6 {[%clk 0:00:16.4]} 38... Rxh6 {[%clk 0:00:07.3]}
39. Bxh6 {[%clk 0:00:17.3]} 39... Bxh5 {[%clk 0:00:07.9]} 40. Bf5 {[%clk
0:00:09]} 40... Nxa3 {[%clk 0:00:08.3]} 0-1

[Event "*** SCC Grand Prix: Titled Tuesday Blitz"]
[Site "Chess.com"]
[Date "2020.07.14"]
[Round "2"]
[White "StockholmMissile"]
[Black "Matibar"]
[Result "1/2-1/2"]
[WhiteElo "2464"]
[BlackElo "2673"]
[TimeControl "180+1"]
[EndTime "10:18:30 PDT"]
[Termination "Game drawn by repetition"]

1. d4 {[%clk 0:03:00.9]} 1... f5 {[%clk 0:02:57.9]} 2. g3 {[%clk 0:03:00.2]}
2... Nf6 {[%clk 0:02:57.4]} 3. Bg2 {[%clk 0:03:00.6]} 3... g6 {[%clk 0:02:56.6]}
4. Nh3 {[%clk 0:02:59.6]} 4... Bg7 {[%clk 0:02:56.2]} 5. Nf4 {[%clk 0:03:00]}
5... Nc6 {[%clk 0:02:51.7]} 6. h4 {[%clk 0:02:57.1]} 6... e5 {[%clk 0:02:44.6]}
7. dxe5 {[%clk 0:02:51.5]} 7... Nxe5 {[%clk 0:02:45.5]} 8. Nc3 {[%clk
0:02:48.7]} 8... c6 {[%clk 0:02:44.3]} 9. h5 {[%clk 0:02:45.9]} 9... d5 {[%clk
0:02:38.7]} 10. b3 {[%clk 0:02:32.8]} 10... Nfg4 {[%clk 0:02:21.6]} 11. Bb2
{[%clk 0:02:28.5]} 11... Qb6 {[%clk 0:01:58]} 12. e3 {[%clk 0:02:15.3]} 12...
Bd7 {[%clk 0:01:39]} 13. Na4 {[%clk 0:01:53.5]} 13... Qa5+ {[%clk 0:01:35]} 14.
Bc3 {[%clk 0:01:52.4]} 14... Qc7 {[%clk 0:01:22.8]} 15. hxg6 {[%clk 0:01:51.4]}
15... hxg6 {[%clk 0:01:22.4]} 16. Rxh8+ {[%clk 0:01:49.6]} 16... Bxh8 {[%clk
0:01:22.9]} 17. Qd2 {[%clk 0:01:30.4]} 17... b6 {[%clk 0:01:01.8]} 18. Nb2
{[%clk 0:01:25.8]} 18... O-O-O {[%clk 0:01:01.3]} 19. Nbd3 {[%clk 0:01:22.3]}
19... g5 {[%clk 0:00:51]} 20. Ne2 {[%clk 0:01:13.5]} 20... Be6 {[%clk 0:00:35]}
21. Nd4 {[%clk 0:01:09.8]} 21... Bd7 {[%clk 0:00:26.7]} 22. O-O-O {[%clk
0:01:09.4]} 22... Nxd3+ {[%clk 0:00:26.5]} 23. cxd3 {[%clk 0:01:07.6]} 23... Qd6
{[%clk 0:00:25.8]} 24. Kb1 {[%clk 0:01:06]} 24... Kb7 {[%clk 0:00:24.5]} 25. Rc1
{[%clk 0:01:03.4]} 25... Rc8 {[%clk 0:00:24]} 26. Bb2 {[%clk 0:01:01]} 26... Ne5
{[%clk 0:00:22.3]} 27. Nf3 {[%clk 0:00:59]} 27... Nxf3 {[%clk 0:00:21.4]} 28.
Bxf3 {[%clk 0:00:59.9]} 28... Bxb2 {[%clk 0:00:17.5]} 29. Qxb2 {[%clk
0:01:00.8]} 29... f4 {[%clk 0:00:17.4]} 30. gxf4 {[%clk 0:00:49.5]} 30... gxf4
{[%clk 0:00:18.3]} 31. e4 {[%clk 0:00:47.7]} 31... dxe4 {[%clk 0:00:15.7]} 32.
Bxe4 {[%clk 0:00:46.7]} 32... Rc7 {[%clk 0:00:14.9]} 33. Rg1 {[%clk 0:00:33.5]}
33... Qh6 {[%clk 0:00:13.6]} 34. Qe5 {[%clk 0:00:31.2]} 34... Bc8 {[%clk
0:00:08.5]} 35. Kb2 {[%clk 0:00:25.7]} 35... f3 {[%clk 0:00:07]} 36. Qg5 {[%clk
0:00:22.5]} 36... Qd6 {[%clk 0:00:06.5]} 37. Qe3 {[%clk 0:00:16.5]} 37... Qe5+
{[%clk 0:00:06.6]} 38. d4 {[%clk 0:00:16.2]} 38... Qf6 {[%clk 0:00:06.6]} 39.
Bxf3 {[%clk 0:00:14.9]} 39... Rf7 {[%clk 0:00:06.7]} 40. Rg3 {[%clk 0:00:11.5]}
40... Be6 {[%clk 0:00:07.3]} 41. Qe5 {[%clk 0:00:05.7]} 41... Qxe5 {[%clk
0:00:06.5]} 42. dxe5 {[%clk 0:00:06.6]} 42... Bd5 {[%clk 0:00:06.9]} 43. Bxd5
{[%clk 0:00:06.3]} 43... Rxf2+ {[%clk 0:00:07.8]} 44. Kc3 {[%clk 0:00:06.5]}
44... cxd5 {[%clk 0:00:08.7]} 45. Rg7+ {[%clk 0:00:06.6]} 45... Kc6 {[%clk
0:00:09.1]} 46. Rxa7 {[%clk 0:00:05.8]} 46... Rf3+ {[%clk 0:00:09.5]} 47. Kd4
{[%clk 0:00:05.6]} 47... Rf4+ {[%clk 0:00:09.7]} 48. Kd3 {[%clk 0:00:05.9]}
48... Rf3+ {[%clk 0:00:09.7]} 49. Kd4 {[%clk 0:00:06.3]} 49... Rf4+ {[%clk
0:00:10]} 50. Kd3 {[%clk 0:00:06.1]} 50... Rf3+ {[%clk 0:00:10.5]} 51. Kd4
{[%clk 0:00:05.8]} 1/2-1/2

[Event "*** SCC Grand Prix: Titled Tuesday Blitz"]
[Site "Chess.com"]
[Date "2020.07.14"]
[Round "2"]
[White "Savva09022009"]
[Black "tan275"]
[Result "0-1"]
[WhiteElo "2440"]
[BlackElo "2279"]
[TimeControl "180+1"]
[EndTime "10:18:30 PDT"]
[Termination "tan275 won by resignation"]

1. d4 {[%clk 0:03:00.9]} 1... Nf6 {[%clk 0:02:58.9]} 2. Nc3 {[%clk 0:03:00.6]}
2... c5 {[%clk 0:02:56]} 3. d5 {[%clk 0:03:00.1]} 3... d6 {[%clk 0:02:54.6]} 4.
Nf3 {[%clk 0:02:57.2]} 4... g6 {[%clk 0:02:54.6]} 5. Bf4 {[%clk 0:02:52.1]} 5...
Bg7 {[%clk 0:02:54.6]} 6. Qd2 {[%clk 0:02:50.5]} 6... O-O {[%clk 0:02:45.1]} 7.
Bh6 {[%clk 0:02:49.5]} 7... Bf5 {[%clk 0:02:36.3]} 8. Bxg7 {[%clk 0:02:47.4]}
8... Kxg7 {[%clk 0:02:37.2]} 9. h4 {[%clk 0:02:47]} 9... b5 {[%clk 0:02:25.1]}
10. h5 {[%clk 0:02:22.3]} 10... b4 {[%clk 0:02:23.3]} 11. Nd1 {[%clk 0:02:12.1]}
11... Qa5 {[%clk 0:02:12.4]} 12. b3 {[%clk 0:01:57.6]} 12... Nbd7 {[%clk
0:02:06.4]} 13. hxg6 {[%clk 0:01:54.8]} 13... Bxg6 {[%clk 0:02:04.8]} 14. Ne3
{[%clk 0:01:45.9]} 14... Ne4 {[%clk 0:01:50.8]} 15. Qc1 {[%clk 0:01:39.6]} 15...
Ndf6 {[%clk 0:01:30.8]} 16. g4 {[%clk 0:01:35.1]} 16... c4 {[%clk 0:01:25.9]}
17. g5 {[%clk 0:01:14.3]} 17... Nxd5 {[%clk 0:01:21.2]} 18. Nxc4 {[%clk
0:01:09.2]} 18... Qc5 {[%clk 0:01:16.2]} 19. Qb2+ {[%clk 0:00:56.9]} 19... Ndc3
{[%clk 0:01:01.8]} 20. e3 {[%clk 0:00:53.4]} 20... d5 {[%clk 0:00:56.4]} 21.
Nce5 {[%clk 0:00:43.6]} 21... Rad8 {[%clk 0:00:50.2]} 22. Bd3 {[%clk 0:00:38.8]}
22... d4 {[%clk 0:00:42.5]} 23. exd4 {[%clk 0:00:31.7]} 23... Rxd4 {[%clk
0:00:25.2]} 24. Nxg6 {[%clk 0:00:25.4]} 24... fxg6 {[%clk 0:00:22]} 25. Qc1
{[%clk 0:00:19.4]} 25... Rxf3 {[%clk 0:00:17.5]} 26. Rh2 {[%clk 0:00:14.7]}
26... Rd8 {[%clk 0:00:13.7]} 27. Bxe4 {[%clk 0:00:11.7]} 27... Nxe4 {[%clk
0:00:13.1]} 28. Qb2+ {[%clk 0:00:10.3]} 28... Qc3+ {[%clk 0:00:13.4]} 29. Qxc3+
{[%clk 0:00:10.6]} 29... Nxc3 {[%clk 0:00:13.9]} 30. a3 {[%clk 0:00:10.3]} 30...
Rf5 {[%clk 0:00:14.3]} 31. axb4 {[%clk 0:00:09.9]} 31... Rfd5 {[%clk 0:00:15]}
32. Kf1 {[%clk 0:00:08.8]} 32... Rd1+ {[%clk 0:00:15.2]} 33. Rxd1 {[%clk
0:00:09.2]} 33... Rxd1+ {[%clk 0:00:16.1]} 34. Kg2 {[%clk 0:00:09.7]} 34... Rd2
{[%clk 0:00:16.6]} 35. Rh4 {[%clk 0:00:07.3]} 35... Rxc2 {[%clk 0:00:16.2]} 36.
Rc4 {[%clk 0:00:07.8]} 36... Rc1 {[%clk 0:00:14.6]} 37. Rc7 {[%clk 0:00:08.2]}
37... Kf7 {[%clk 0:00:12.9]} 38. Rxa7 {[%clk 0:00:07.8]} 38... Rb1 {[%clk
0:00:12.9]} 39. Rc7 {[%clk 0:00:07.2]} 39... Rxb3 {[%clk 0:00:13.1]} 40. Rc4
{[%clk 0:00:06]} 40... Nd5 {[%clk 0:00:12.2]} 41. Rd4 {[%clk 0:00:05.7]} 41...
Ke6 {[%clk 0:00:11.5]} 42. Re4+ {[%clk 0:00:04.9]} 42... Kd6 {[%clk 0:00:11.6]}
43. Rh4 {[%clk 0:00:04.9]} 43... Rxb4 {[%clk 0:00:10.2]} 44. Rxh7 {[%clk
0:00:05.4]} 44... Rg4+ {[%clk 0:00:10.7]} 45. Kf3 {[%clk 0:00:05.7]} 45... Rxg5
{[%clk 0:00:11.6]} 46. Rf7 {[%clk 0:00:05.9]} 46... Rf5+ {[%clk 0:00:11.8]} 47.
Rxf5 {[%clk 0:00:06.6]} 47... gxf5 {[%clk 0:00:12.7]} 0-1